Cogmind - Beta 17 @@@ ROGUE MODE // 2026.07.10 @ 14:41:47 Player: arcadio rl Result: Destroyed by P-70 Sage with Tesla Rifle Performance ------------- Evolutions (5) 2500 Regions Visited (6) 1200 Robots Destroyed (31) 155 Value Destroyed (1021) 1021 Prototype IDs (11) 220 Alien Tech Used (0) 0 Bonus (800) 800 TOTAL SCORE: 5896 Bonus ------- Registered with UFD 300 Met Optimus in HQ 500 Cogmind --------- Core Integrity 0/1000 Matter 300/300 Energy 82/100 System Corruption 12% Temperature Cool (0) Movement Core (2150) Ox42 Location -5/Factory Parts ------- > --- POWER (2) -------- (None) > --- PROPULSION (5) --- (None) > --- UTILITY (7) ------ Scrap Suit High-capacity Storage Unit Huge Storage Unit > --- WEAPON (3) ------- Companion Sword > --- INVENTORY (25) --- Experimental Terrain Scanner Peak State ------------ > --- POWER ------------ Improved Deuterium Engine > --- PROPULSION ------- Titanium Leg Improved Carbon-fiber Leg Improved Carbon-fiber Leg > --- UTILITY ---------- Medium Storage Unit Experimental Terrain Scanner Targeting Computer Targeting Computer Targeting Computer Improved Targeting Computer Matter Filter > --- WEAPON ----------- Advanced Assault Cannon Magnetic Acceleration Cannon Companion Sword > --- INVENTORY -------- Scrap Suit High-capacity Storage Unit Huge Storage Unit Advanced Weight Redist. System Improved Light Armor Plating Grenade Launcher Missile Launcher [Rating: 51] Favorites ----------- Power Improved Deuterium Engine Engine Improved Deuterium Engine Propulsion Aluminum Leg Leg Aluminum Leg Utility Medium Storage Unit Device Disposable Heat Sink Storage Medium Storage Unit Processor Targeting Computer Protection Improved Light Armor Plating Weapon Advanced Assault Cannon Energy Gun Medium Laser Ballistic Gun Battle Rifle Ballistic Cannon Advanced Assault Cannon Launcher Grenade Launcher Slashing Weapon Companion Sword Build | -11 -10 -10 -10 -7 -7 -5 ------- Run | Yrd Mat Min Sub Rec Scr Fac Slots Evolved 10 | . . . . . . 10 Power 1 | . . . . . . 1 Propulsion 3 | . . . . . . 3 Utility 5 | . . . . . . 5 Weapon 1 | . . . . . . 1 Parts Attached 45 | 6 11 . 6 4 4 14 Power 4 | 1 2 . . 1 . . Engine 4 | 1 2 . . 1 . . Core . | . . . . . . . Reactor . | . . . . . . . Propulsion 13 | 2 4 . 1 2 1 3 Treads . | . . . . . . . Leg 13 | 2 4 . 1 2 1 3 Wheel . | . . . . . . . Hover . | . . . . . . . Flight . | . . . . . . . Utility 15 | 1 3 . 1 . . 10 Device 5 | . 2 . . . . 3 Storage 5 | 1 1 . . . . 3 Processor 4 | . . . 1 . . 3 Hackware . | . . . . . . . Protection 1 | . . . . . . 1 Artifact . | . . . . . . . Weapon 13 | 2 2 . 4 1 3 1 Energy Gun 4 | 2 1 . 1 . . . Energy Cannon . | . . . . . . . Ballistic Gun 3 | . 1 . 1 . 1 . Ballistic Cannon 2 | . . . . . 2 . Launcher 2 | . . . 2 . . . Special Weapon . | . . . . . . . Impact Weapon . | . . . . . . . Slashing Weapon 2 | . . . . 1 . 1 Piercing Weapon . | . . . . . . . Special Melee Weapon . | . . . . . . . Unidentified Prototypes 1 | . . . . . . 1 Parts Lost 19 | . 2 . 1 . . 16 Power 2 | . 1 . . . . 1 Propulsion 6 | . . . . . . 6 Utility 7 | . . . . . . 7 Weapon 4 | . 1 . 1 . . 2 Highest Loss Streak 14 | . 1 . 1 . . 14 To Critical Strikes . | . . . . . . . Average Backups 8 | 2 9 10 9 9 8 7 Power . | . . . . 1 . . Propulsion 1 | 1 3 4 2 2 1 . Utility 3 | . 2 3 2 3 4 5 Weapon 2 | . 2 3 3 3 2 1 Tool/Special . | . . . . . . . Unused Backups 20 | . 10 . 3 . 3 4 Power 1 | . . . . . 1 . Propulsion 7 | . 4 . 2 . 1 . Utility 9 | . 5 . . . 1 3 Weapon 2 | . . . 1 . . 1 Tool/Special 1 | . 1 . . . . . Average Slot Usage (%) 97 | . 99 100 100 99 99 66 Engine 13 | . 14 14 14 14 14 3 Leg 27 | . 28 28 28 28 28 18 Device 4 | . 13 14 4 . . 3 Storage 13 | . 14 14 14 14 14 5 Processor 10 | . . . 9 14 14 19 Energy Gun 12 | . 27 28 21 13 . . Ballistic Gun 3 | . . . 4 13 1 . Ballistic Cannon 10 | . . . . . 24 5 Peak Build Rating 51 | 6 10 9 10 18 25 51 Average Rating 17 | 4 8 9 9 13 23 37 On Entrance 10 | . 6 9 9 10 16 25 Avg Prop Armor Cover (%) . | . . . . . . . Naked Turns . | . . . . . . . Heaviest Build 128 | 11 21 21 22 26 34 128 Greatest Support 83 | 20 20 20 20 28 35 83 Greatest Overweight (x) 42 | . 1 1 1 1 1 42 Average Overweight (x) . | . . 1 . . . . Largest Inventory Capacity 25 | 8 10 10 10 10 10 25 Average Capacity 9 | 7 9 10 10 10 10 10 Most Carried 10 | 6 10 10 10 10 10 10 Average Carried 9 | 2 9 10 9 9 9 7 Final Capacity 25 | 8 10 10 10 10 10 25 Final Carried 10 | 6 10 10 10 10 10 1 Scrap Suit Usage (%) 1 | . . . . . . 4 Class Distribution -------------------- 89% | Mutant 10% | Scavenger-Mutant Dominant Class ---------------- Mutant | -10/Materials Scavenger-Mutant | -10/Mines Mutant | -10/Subcaves Mutant | -7/Recycling Mutant | -7/Scraptown Mutant | -5/Factory Resources | -11 -10 -10 -10 -7 -7 -5 ----------- Run | Yrd Mat Min Sub Rec Scr Fac Matter Collected 935 | 247 148 . 226 30 66 218 Remotely . | . . . . . . . Salvage Created 1059 | . 454 . 84 . . 521 Parts 63 | . 29 . 12 . . 22 Haulers Intercepted 2 | . 2 . . . . . Recyclers Shooed . | . . . . . . . Parts Field Recycled . | . . . . . . . Retrieved Matter . | . . . . . . . Parts Self-Destructed 4 | . . . 4 . . . Prevented . | . . . . . . . Parts Restored . | . . . . . . . Kills | -11 -10 -10 -10 -7 -7 -5 ------- Run | Yrd Mat Min Sub Rec Scr Fac Combat Hostiles Destroyed 27 | . 11 . 6 . . 10 Melee 7 | . . . . . . 7 Guns 13 | . 10 . 3 . . . Cannons 3 | . . . . . . 3 AOE 3 | . . . 3 . . . Classes Destroyed 8 | . 4 . 2 . . 2 Hauler 2 | . 2 . . . . . Operator 1 | . 1 . . . . . Turret 1 | . . . 1 . . . Swarmer 9 | . 5 . 4 . . . Grunt 14 | . 6 . . . . 8 Sentry 1 | . . . . . . 1 Programmer 1 | . . . . . . 1 Subdweller 2 | . . . 2 . . . Best Kill Streak 4 | . 3 . 2 . . 4 Combat Bots Only 4 | . 3 . 2 . . 4 Max Kills in Single Turn 2 | . 2 . 2 . . 1 Gunslinging 1 | . 1 . . . . . Exploded 2 | . . . 2 . . . Melee 1 | . . . . . . 1 Uniques/NPCs Destroyed . | . . . . . . . Combat | -11 -10 -10 -10 -7 -7 -5 -------- Run | Yrd Mat Min Sub Rec Scr Fac Hostile Shots Fired 258 | . 64 . 36 . . 158 Missed 66 | . 16 . 10 . . 40 Hits 192 | . 48 . 26 . . 118 Projectile 192 | . 48 . 26 . . 118 Critical Strikes 11 | . 1 . 2 . . 8 Damage Taken 3416 | . 521 . 391 . . 2504 Core 1218 | . 87 . 121 . . 1010 Absorbed by Shields . | . . . . . . . Core Remaining (%) 58 | 100 . . . . 16 . Volleys Fired 90 | . 59 . 20 . . 11 Largest 2 | . 2 . 2 . . 2 Hottest 125 | . 115 . 125 . . 84 Shots Fired 166 | . 118 . 34 . . 14 Gun 143 | . 118 . 25 . . . Cannon 14 | . . . . . . 14 Launcher 9 | . . . 9 . . . Special . | . . . . . . . Kinetic 23 | . 2 . 7 . . 14 Thermal 134 | . 116 . 18 . . . Explosive 9 | . . . 9 . . . Electromagnetic . | . . . . . . . Robot Hit Streak 8 | . 8 . 5 . . 6 Robot Miss Streak 5 | . 5 . 2 . . 1 Penetration Max . | . . . . . . . Secondary Targets 3 | . 3 . . . . . Max Gunslinging Chain 1 | . 1 . . . . . Shots Hit Robots 131 | . 72 . 13 . . 46 Core Hits 52 | . 24 . 10 . . 18 Critical Kills . | . . . . . . . Critical Parts Destroyed . | . . . . . . . Critical Strikes 10 | . 8 . . . . 2 Burn 8 | . 8 . . . . . Blast 2 | . . . . . . 2 Melee Attacks 46 | . . . . . . 46 Impact . | . . . . . . . Slashing 46 | . . . . . . 46 Piercing . | . . . . . . . Sneak Attacks . | . . . . . . . Combat Hostiles . | . . . . . . . Follow-up Attacks 1 | . . . . . . 1 Damage Inflicted 3283 | . 872 . 476 . . 1935 Guns 1097 | . 871 . 226 . . . Cannons 354 | . . . . . . 354 Explosions 528 | . . . 250 . . 278 Melee 1303 | . . . . . . 1303 Ramming 1 | . 1 . . . . . Kinetic 443 | . 7 . 82 . . 354 Thermal 1286 | . 864 . 144 . . 278 Explosive 250 | . . . 250 . . . Electromagnetic . | . . . . . . . Impact . | . . . . . . . Slashing 1303 | . . . . . . 1303 Piercing . | . . . . . . . Highest Corruption 12 | . 2 2 2 2 2 12 Average Corruption 2 | . 2 2 2 2 2 5 Corruption Purged . | . . . . . . . Corruption Blocked . | . . . . . . . Effects 30 | . 9 1 11 6 1 2 Message Errors 9 | . 3 . 1 4 . 1 Matter Fused 5 | . 2 1 1 . 1 . Heat Flow Errors 4 | . 2 . 2 . . . Energy Discharges 5 | . 2 . 1 1 . 1 Parts Fused 1 | . . . . 1 . . Data Loss (minor) 2 | . . . 2 . . . Data Loss (major) 2 | . . . 2 . . . Misfires 1 | . . . 1 . . . Weapon Failures 1 | . . . 1 . . . Overload Shots . | . . . . . . . Overflow Damage 104 | . . . 8 . . 96 Projectiles . | . . . . . . . Explosions 94 | . . . 8 . . 86 Melee 10 | . . . . . . 10 Knockbacks 5 | . . . . . . 5 Impact . | . . . . . . . Kinetic 5 | . . . . . . 5 Secondary . | . . . . . . . Self-Inflicted Damage 81 | . . . . . . 81 Shots 1 | . . . . . . 1 Rammed . | . . . . . . . Targets Rammed 1 | . 1 . . . . . Kicked 1 | . 1 . . . . . Crushed . | . . . . . . . Highest Temperature 217 | . 199 . 217 . . 33 Average Temperature 73 | . 78 . 49 . . 19 Received Heat Transfer 978 | . 198 . 84 . . 696 Effects 1 | . . . 1 . . . Energy Bleed 1 | . . . 1 . . . Siege Activations . | . . . . . . . Martial Activations . | . . . . . . . Shielding Activations . | . . . . . . . Robots Disrupted . | . . . . . . . Combat Hostiles . | . . . . . . . Robots Corrupted . | . . . . . . . Combat Hostiles . | . . . . . . . Parts Fried . | . . . . . . . Impact Corruptions . | . . . . . . . Robots Melted 1 | . 1 . . . . . Combat Hostiles 1 | . 1 . . . . . Parts Melted 3 | . 2 . . . . 1 Heat Transferred 3172 | . 2823 . 199 . . 150 Parts Sabotaged . | . . . . . . . Parts Stolen . | . . . . . . . Parts Stripped . | . . . . . . . Power Chain Reactions . | . . . . . . . Alert | -11 -10 -10 -10 -7 -7 -5 ------- Run | Yrd Mat Min Sub Rec Scr Fac Maximum Alert Level . | . . . . . . . Low Security (%) 100 | 100 100 100 . 100 . 100 Level 1 . | . . . . . . . Level 2 . | . . . . . . . Level 3 . | . . . . . . . Level 4 . | . . . . . . . Level 5 . | . . . . . . . High Security . | . . . . . . . Max Security . | . . . . . . . Peak Influence 135 | . 80 18 . 50 . 135 Initial 18 | . . 18 . . . . Average 21 | . 17 4 . 7 . 66 Influence Increases 935 | . 329 . 130 90 . 386 Destroy 0b10 Robot/C 520 | . 220 . 100 . . 200 Destroy 0b10 Robot/NC 15 | . 15 . . . . . Destroy Leader 74 | . 44 . . . . 30 Successful Hack 24 | . 20 . . . . 4 Select Force Hacks 90 | . . . . 90 . . Disable Machine 30 | . . . . . . 30 Destroy Structure 62 | . . . . . . 62 Lose Combat Pursuer 120 | . 30 . 30 . . 60 Influence Decreases 853 | . 280 49 130 64 26 304 Entered New Map 57 | . . 31 . . 26 . Time Decay 619 | . 263 18 130 64 . 144 Lost Part 177 | . 17 . . . . 160 Squads Dispatched 3 | . 1 . . . . 2 Investigation 2 | . 1 . . . . 1 Extermination 1 | . . . . . . 1 Reinforcement . | . . . . . . . Assault . | . . . . . . . Garrison . | . . . . . . . Intercept . | . . . . . . . Searches Triggered . | . . . . . . . Construction Impeded . | . . . . . . . Haulers Reinforced . | . . . . . . . Active Scanning Responses . | . . . . . . . Cargo Convoy Interrupts . | . . . . . . . Stealth | -11 -10 -10 -10 -7 -7 -5 --------- Run | Yrd Mat Min Sub Rec Scr Fac Distress Signals . | . . . . . . . Communications Jammed . | . . . . . . . Distress Signals . | . . . . . . . Times Spotted 46 | . 21 1 9 . . 15 Peak Tracking Total 8 | . 3 2 3 . . 8 Tactical Retreats 6 | . 2 1 1 . . 2 Traps | -11 -10 -10 -10 -7 -7 -5 ------- Run | Yrd Mat Min Sub Rec Scr Fac Traps Triggered 2 | . 2 . . . . . Indirectly . | . . . . . . . Trap Hack Attempts . | . . . . . . . Triggered . | . . . . . . . Disarmed . | . . . . . . . Reprogrammed . | . . . . . . . Reused . | . . . . . . . Traps Extracted . | . . . . . . . Installed . | . . . . . . . Triggered . | . . . . . . . Machines | -11 -10 -10 -10 -7 -7 -5 ---------- Run | Yrd Mat Min Sub Rec Scr Fac Machines Disabled 5 | . . . 3 . . 2 Max in Single Turn 2 | . . . 2 . . 2 Machines Repaired . | . . . . . . . Machines Dismantled . | . . . . . . . Machines Sabotaged . | . . . . . . . Overloaded Fab Kills . | . . . . . . . Hacking | -11 -10 -10 -10 -7 -7 -5 --------- Run | Yrd Mat Min Sub Rec Scr Fac Machines Accessed 25 | . 9 1 . 5 7 3 Terminals 12 | . 7 1 . 2 . 2 Fabricators . | . . . . . . . Repair Stations . | . . . . . . . Recycling Units 6 | . 2 . . 3 . 1 Scanalyzers . | . . . . . . . Garrison Access . | . . . . . . . Total Hacks 74 | . 26 3 . 11 28 6 Successful 50 | . 15 1 . 4 28 2 Failed 24 | . 11 2 . 7 . 4 Catastrophic 4 | . 1 . . . . 3 Database Lockouts . | . . . . . . . Manual 29 | . 17 4 . 4 . 4 Terminals 36 | . 24 3 . 4 . 5 Fabricators . | . . . . . . . Repair Stations . | . . . . . . . Recycling Units 10 | . 2 . . 7 . 1 Scanalyzers . | . . . . . . . Garrison Access . | . . . . . . . Terminal Hacks 38 | . 9 . . . 28 1 Record 27 | . . . . . 27 . Robot Analysis 1 | . 1 . . . . . Prototype ID Bank 3 | . 3 . . . . . Open Door 1 | . . . . . 1 . Terminal Index 1 | . 1 . . . . . Locate Traps 2 | . 1 . . . . 1 Patrol Status 1 | . 1 . . . . . Recall Investigation 1 | . 1 . . . . . Hauler Manifests 1 | . 1 . . . . . Fabricator Hacks . | . . . . . . . Repair Station Hacks . | . . . . . . . Recycling Unit Hacks 3 | . 2 . . 1 . . Report Inventory 3 | . 2 . . 1 . . Scanalyzer . | . . . . . . . Garrison Access Hacks . | . . . . . . . Unauthorized Hacks 9 | . 4 1 . 3 . 1 Terminals 6 | . 4 1 . . . 1 Assimilate 1 | . 1 . . . . . Botnet 4 | . 2 1 . . . 1 Operators 1 | . 1 . . . . . Fabricators . | . . . . . . . Repair Stations . | . . . . . . . Recycling Units 3 | . . . . 3 . . Tunnel 3 | . . . . 3 . . Scanalyzers . | . . . . . . . Garrison Access . | . . . . . . . Data Cores Recovered 1 | . 1 . . . . . Used 1 | . 1 . . . . . Hacking Detections 15 | . 7 1 . 4 . 3 Full Trace Events 1 | . . . . . . 1 Feedback Events . | . . . . . . . Feedback Blocked . | . . . . . . . Robot Schematics Acquired . | . . . . . . . Robots Built . | . . . . . . . Authchips . | . . . . . . . Time . | . . . . . . . Total Robot Build Rating . | . . . . . . . Part Schematics Acquired . | . . . . . . . Parts Built . | . . . . . . . Authchips . | . . . . . . . Time . | . . . . . . . Total Part Build Rating . | . . . . . . . Part Studies Acquired . | . . . . . . . Parts Repaired . | . . . . . . . Time . | . . . . . . . Parts Recycled . | . . . . . . . Recycled Matter . | . . . . . . . Retrieved Matter . | . . . . . . . Retrieved Components . | . . . . . . . Parts Scanalyzed . | . . . . . . . Part Schematics Acquired . | . . . . . . . Parts Damaged . | . . . . . . . Bothacking | -11 -10 -10 -10 -7 -7 -5 ------------ Run | Yrd Mat Min Sub Rec Scr Fac Used RIF Installer . | . . . . . . . Robots Hacked . | . . . . . . . Non-combat . | . . . . . . . Combat . | . . . . . . . Robot Hacks Applied . | . . . . . . . Relay Couplers Released . | . . . . . . . Fabnet Peak Effective % . | . . . . . . . Robots Rewired . | . . . . . . . Allies Hacked . | . . . . . . . Hacks Repelled . | . . . . . . . Allies | -11 -10 -10 -10 -7 -7 -5 -------- Run | Yrd Mat Min Sub Rec Scr Fac Total Allies . | . . . . . . . Largest Group . | . . . . . . . Highest-Rated Group . | . . . . . . . Highest-Rated Ally . | . . . . . . . Initial UFD Resources 37 | . . . . . . 37 Total Orders . | . . . . . . . Ally Attacks . | . . . . . . . Total Damage . | . . . . . . . Kills . | . . . . . . . Allies Corrupted . | . . . . . . . Allies Melted . | . . . . . . . Intel | -11 -10 -10 -10 -7 -7 -5 ------- Run | Yrd Mat Min Sub Rec Scr Fac Active Infowar (turns) 119 | . . . . . . 119 Terrain 119 | . . . . . . 119 Robot Analysis Total 1 | . 1 . . . . . Derelict Logs Recovered 3 | . . . 1 . 2 . Drone Launches . | . . . . . . . Drone Recoveries . | . . . . . . . Exploration | -11 -10 -10 -10 -7 -7 -5 ------------- Run | Yrd Mat Min Sub Rec Scr Fac Turns Passed 5507 | 76 1270 107 713 671 2254 416 Spaces Moved 3551 | 53 708 57 382 486 1680 185 Core 9 | 3 . . . . . 6 Treads . | . . . . . . . Legs 3542 | 50 708 57 382 486 1680 179 Wheels . | . . . . . . . Hover . | . . . . . . . Flight . | . . . . . . . Fastest Speed 50 | 50 120 190 120 120 120 100 Average Speed 134 | 116 138 190 165 135 124 134 Slowest Speed 2150 | 120 190 190 190 190 190 2150 Overloaded Moves . | . . . . . . . Propulsion Burnouts . | . . . . . . . Robots Hopped . | . . . . . . . Potential Cave-ins . | . . . . . . . Cave-ins Triggered . | . . . . . . . Exploration Rate (%) 39 | 5 84 12 29 51 92 5 Regions Visited 6 Branch Regions 4 Pre-discovered Areas 3 | . . . . 3 . . Known Exits Taken . | . . . . . . . Unknown Exits Taken 6 | 1 1 1 1 1 1 . Scrap Searched 5 | . . . 3 . 2 . Spaces Dug . | . . . . . . . Terrain Destroyed 71 | . . . 35 . . 36 Melee . | . . . . . . . Projectile 1 | . . . . . . 1 AOE 70 | . . . 35 . . 35 Terrain Rammed . | . . . . . . . Walls Destroyed . | . . . . . . . Machines Disabled . | . . . . . . . Actions | -11 -10 -10 -10 -7 -7 -5 --------- Run | Yrd Mat Min Sub Rec Scr Fac Total 4057 | 64 886 56 430 499 1843 279 Wait 234 | . 69 . 8 4 139 14 Move 3545 | 52 707 56 381 485 1679 185 Hop . | . . . . . . . Pick Up 43 | 6 18 . 5 1 8 5 Fast Attach 19 | 6 2 . . 1 4 6 Attach 14 | . 2 . 2 . 1 9 Detach 2 | . . . . . 1 1 Swap 22 | . 8 . 8 3 1 2 Drop 42 | . 20 . 6 5 10 1 Fire 90 | . 59 . 20 . . 11 Melee 45 | . . . . . . 45 Ram . | . . . . . . . Kick 1 | . 1 . . . . . Crush . | . . . . . . . Escape Stasis . | . . . . . . . Rewire . | . . . . . . . Trap . | . . . . . . . Miscellaneous . | . . . . . . . Route ------- -11/Scrapyard -10/Materials (discovered 5 exits: [*Mat x3] / *Min x2) -10/Mines -10/Subcaves -7/Recycling (discovered 2 exits: *Fac / *Scr) -7/Scraptown (discovered 2 exits: *Fac x2) -5/Factory (discovered 1 exit: Upp) History --------- Turn | Location | Event 4 | -11/Scrapyard | Discovered new exit (range 15) 77 | -11/Scrapyard | Entered Materials 179 | -10/Materials | Discovered new exit (range 7) 233 | -10/Materials | Discovered new exit (range 4) 307 | -10/Materials | Build established: Mutant 528 | -10/Materials | Discovered new exit (range 12) 864 | -10/Materials | Discovered new exit (range 15) 1079 | -10/Materials | Discovered new exit (range 12) 1329 | -10/Materials | Build established: Scavenger-Mutant 1347 | -10/Materials | Entered Mines 1348 | -10/Mines | Assembled infested the area 1353 | -10/Mines | Assisted by a Guerilla fighting off Assembled 1427 | -10/Mines | Discovered new exit (range 13) 1454 | -10/Mines | Entered Subcaves 1599 | -10/Subcaves | Ambushed by Subdweller buried in earth 1606 | -10/Subcaves | Discovered new exit (range 14) 1779 | -10/Subcaves | Learned 8 Materials zone layouts 1887 | -10/Subcaves | Build established: Mutant 1891 | -10/Subcaves | Shifting Twisted Machinery released Sub. Monowheel 1897 | -10/Subcaves | Shifting Twisted Machinery released Riot Gun 1948 | -10/Subcaves | Core integrity fell below 50% 2009 | -10/Subcaves | Core integrity fell below 20% 2167 | -10/Subcaves | Entered Recycling 2434 | -7/Recycling | Discovered new exit (range 15) 2561 | -7/Recycling | Scanned before Scraplab entrance 2835 | -7/Recycling | Discovered new exit (range 3) 2838 | -7/Recycling | Entered Scraptown 2843 | -7/Scraptown | System corruption cleaned by C-Scrubber 3024 | -7/Scraptown | Heard Great Nut preacher, LISTEN AND RECITE! 3156 | -7/Scraptown | Scanned Subdweller tech in exchange for log data 3160 | -7/Scraptown | Learned 12 Factory zone layouts 3179 | -7/Scraptown | Discovered new exit (range 5) 3285 | -7/Scraptown | Visited Junk Repository 3327 | -7/Scraptown | Visited Fellowship of the Rings 3364 | -7/Scraptown | Visited Assassins FH 3410 | -7/Scraptown | Visited Spacefarers 3479 | -7/Scraptown | Visited Cave Peace 3830 | -7/Scraptown | Visited SPCMW 3875 | -7/Scraptown | Visited UFD Registry 3882 | -7/Scraptown | Registered with UFD as "Beamhead" 3949 | -7/Scraptown | Visited Sword Containment 3962 | -7/Scraptown | Found Prototype Slashing Weapon 4019 | -7/Scraptown | Visited Junk Repository 4118 | -7/Scraptown | Visited Scrapoid Research Area 4171 | -7/Scraptown | Discovered new exit (range 5) 4288 | -7/Scraptown | Visited Supply Room 4308 | -7/Scraptown | Visited Observation Area 4367 | -7/Scraptown | Visited Infowarlord's Domain 4413 | -7/Scraptown | Found Exp. Terrain Scanner 4585 | -7/Scraptown | Delivered Scrap Shield to a Scientist 4620 | -7/Scraptown | Visited Scrap Suit Storage 4627 | -7/Scraptown | Found Scrap Suit 4681 | -7/Scraptown | Visited Supply Room 4706 | -7/Scraptown | Visited Derelict Rescue Squad 4995 | -7/Scraptown | Met Optimus 4995 | -7/Scraptown | Accepted into 0bPrime 5092 | -7/Scraptown | Entered Factory 5092 | -5/Factory | Evolved 10 slots: Power x1, Propulsion x3, Utility x5, Weapon x1 5093 | -5/Factory | Identified exit to Upper Caves 5097 | -5/Factory | Identified Companion Sword 5458 | -5/Factory | Core integrity fell below 50% 5483 | -5/Factory | Core integrity fell below 20% 5497 | -5/Factory | System corruption reached 10% 5508 | -5/Factory | Destroyed by P-70 Sage with Tesla Rifle Last Messages --------------- 05461_ Critical hit (Burn: +37). 05464_ Imp. Targeting Computer destroyed. 05464_ Penetrated by Slug. 05465_ R-10 Processor collects Carbon-fiber Leg. 05466_ Targeting Computer destroyed. 05468_ Penetrated by Slug. 05473_ Y-64 Sentinel destroyed. 05476_ Med. Storage Unit destroyed. 05482_ K-01 Serf collects debris. 05487_ U-05 Engineer builds a Wall. 05488_ K-01 Serf collects debris. 05491_ KZN 05507_ System corrupted: Energy discharge (-23). Map ----- +----------------------------------------------------+ | ?????????????????????????????????????????????????# | | ????#????????????????????????????????????????????? | | ?????????????????????????????????????????????????? | | ?????????????????????????????????????????????????? | | ?? ??????????????????????????????????????????????? | | ????????????????????????????????????????????????? | | ?????????????????????????????????????????????????? | | ????????? ??????????????? ???????????????????????? | | ? ???????? ????? ???????? ???????????????????????? | | #####????????? ???????? ???????????????????????? | | ??????? ???????? ???????????????????????? | | ???????# ???????? ???????????????????????? | | " " "?????## ???????? ???????????????????????? | | " " " " #??# ???????? ???????????????????????? | | " " " " #??# #??????# #??????????????????????? | | " " " " #??# #??????# #??????????????????????? | | " " " " #??# #??????#^#??????????????????????? | | " " " " #??# #??????#!#??????????????????????? | | " " " " #??# #??????#%#??????????????????????? | | " " " " #??# #??????#*#??????????????????????? | | " " " " #??# +??? ??#[#??????????????????????? | | #??# #??????#=#??????????????????????? | | #??# "??????#%#??????????????????????? | | ##?# #?????##k########???????????????? | | #??# #?????#!![!] #???????????????? | | ##?# #######!@%! #???????????????? | | ############ =%]=p #???????????????? | | [=!k"" #???????????????? | | * T #???????????????? | | #???????????????? | | #########+## #???????????????? | | ############# = #???????????????? | | #?#?????????# #???????????????? | | #?#?????????###+#+#####???????????????? | | """ #????????????? ?????????????????????? | | """ ""Y"" #?#??????????? ????????????????????? | | """ """"" #????????????? ????????????????????? | | #????????????? ???????????????????? | | #############?????? ????? "??????????????????? | | ????#????? ??????????????!! ???????????????????? | | ?????????????????????????!!??????????????????????? | | ???????????????+?????????????????????????????????? | | ????????????"????????????????????????????????????? | | ?????#???????????????????????????????????????????? | | ? ??????????????????????????????????????????????? | | ??"??????????????????????????????????????????????? | | ??????? ?????????????????????????????????????????? | | ?????????????????????????????????????????????????? | | ??????? ???????#?????????????????????????????????? | | ?"????#??????????????????????????????????????????? | +----------------------------------------------------+ Best States ------------- Heat Dissipation 40 Coolant Potential 50 Energy Generation 16 Energy Capacity 290 Matter Stores 300 Matter Capacity 300 Sight Range 16 Terrain Scan Range 30 Terrain Scan Density 10 Armor Coverage 150 Evasion (%) 55 Targeting Accuracy 21 Matter Filtering 30 Item Schematics ----------------- None Robot Schematics ------------------ None Fabricated ------------ Nothing Repaired ---------- Nothing Studied --------- None Alien Tech Used ----------------- None Achievements -------------- Do Not Disturb Link The Feds Challenges ------------ None Game ------ Seed MetamassTargetingLance Manual? 0 Play Time 01:12:35 Cumulative 150.6 hours Start 2026.07.06 @ 10:55:31 End 2026.07.10 @ 14:41:47 Sessions 6 Manual Loads 0 Difficulty Rogue Special Mode None Game No. 123 Rogue 123 Adventurer 0 Explorer 0 Win Type - Total 0 Types 0/0/0/0/0/0/0/0/0/0 Lore% 53 Gallery% 49 Achievement% 32 Wizard Run 0 Options --------- Layout 1 ASCII 0 Keyboard 1 Movement Numpad Keybinds 0 Fullscreen 1 Font 24/Smallcaps Map View 50x35 Zoom Use 0% Tactical HUD 1 Map Filters NONE Filters NONE Steam 1 RUN: 47a2a74a-08dc-4a71-a300-35c735df6a80